bitfinex/quotes_BTCUSD_20251221
["timestamp","ask_amount","ask_price","bid_price","bid_amount"]
[1766295752473,0.0113317,88248.0,88240.0,0.11471]
[1766295752658,8.117e-05,88248.0,88242.0,0.00568]
[1766295757243,8.117e-05,88248.0,88242.0,0.00536365]
[1766295760338,8.117e-05,88248.0,88242.0,0.0050473]
[1766295760736,0.03233162,88253.0,88248.0,7.983e-05]
[1766295760958,0.03233162,88253.0,88246.0,0.23804]
[1766295761379,0.03233162,88253.0,88246.0,0.23481]
[1766295761986,0.005131,88256.0,88246.0,0.23481]
[1766295762192,0.03233162,88255.0,88246.0,0.23481]
[1766295763583,0.005131,88256.0,88246.0,0.23481]
[1766295769071,0.00474883,88256.0,88246.0,0.23481]
[1766295769281,0.00568,88255.0,88246.0,0.23481]
[1766295776686,0.00568,88254.0,88246.0,0.23481]
[1766295778030,0.00568,88254.0,88246.0,0.24614195]
[1766295778232,0.00568,88254.0,88246.0,0.23481]
[1766295779054,0.00568,88254.0,88246.0,0.12038]
[1766295781229,0.01701093,88254.0,88246.0,0.12038]
[1766295781430,0.01133105,88253.0,88246.0,0.11983]
[1766295781610,0.01701093,88254.0,88246.0,0.11983]
[1766295782850,0.00568,88254.0,88246.0,0.11983]
[1766295783200,0.00245,88254.0,88246.0,0.11983]
[1766295794428,0.00245,88254.0,88242.0,0.1227073]
[1766295794625,0.11379602,88252.0,88242.0,0.0050473]
[1766295794983,0.05714,88252.0,88242.0,0.0050473]
[1766295796454,0.01133105,88253.0,88242.0,0.2367673]
[1766295797416,0.01378093,88254.0,88242.0,0.2367673]
[1766295798550,0.01133105,88253.0,88242.0,0.2367673]
[1766295799663,0.01378093,88254.0,88242.0,0.2367673]
[1766295799835,0.01133105,88253.0,88242.0,0.2367673]
[1766295800731,0.01378093,88254.0,88242.0,0.2367673]
[1766295800732,0.00245,88254.0,88242.0,0.2367673]
[1766295803934,0.01133105,88253.0,88242.0,0.2367673]
[1766295804202,0.01378093,88254.0,88242.0,0.2367673]
[1766295804990,0.00245,88254.0,88242.0,0.2367673]
[1766295806228,0.01378093,88254.0,88242.0,0.2367673]
[1766295806461,0.00245,88254.0,88242.0,0.2367673]
[1766295807628,0.01133105,88253.0,88242.0,0.2367673]
[1766295807831,0.01378093,88254.0,88242.0,0.2367673]
[1766295808257,0.00245,88254.0,88242.0,0.2367673]
[1766295808794,0.01378093,88254.0,88242.0,0.2367673]
[1766295810692,0.01133195,88246.0,88233.0,0.11989]
[1766295810900,0.17542,88244.0,88234.0,0.00568]
[1766295811418,0.05714,88244.0,88234.0,0.00568]
[1766295826835,0.01133349,88234.0,88225.0,0.11709]
[1766295827046,0.01133349,88234.0,88229.0,0.00568]
[1766295827273,0.06847337,88235.0,88229.0,0.00568]
[1766295827499,0.05714,88235.0,88229.0,0.00568]
[1766295827726,0.06847337,88235.0,88229.0,0.00568]
[1766295827973,0.05714,88235.0,88229.0,0.00568]
[1766295831709,0.06847337,88235.0,88229.0,0.00568]
[1766295831944,0.05714,88235.0,88229.0,0.00568]
[1766295834526,0.05714,88235.0,88229.0,0.00576117]
[1766295835115,0.17039,88235.0,88224.0,0.00568]
[1766295835317,0.01133388,88231.0,88224.0,0.00568]
[1766295835496,0.01133414,88229.0,88224.0,0.00568]
[1766295835703,0.01133388,88231.0,88224.0,0.00568]
[1766295835897,0.01133401,88230.0,88224.0,0.00568]
[1766295836154,0.01133388,88231.0,88224.0,0.00568]
[1766295836714,0.01133388,88231.0,88224.0,0.00246]
[1766295836917,0.01133401,88230.0,88224.0,0.00246]
[1766295837191,0.01133388,88231.0,88224.0,0.00246]
[1766295838390,0.01133388,88231.0,88220.0,0.32268614]
[1766295838812,0.01133401,88230.0,88220.0,0.32268614]
[1766295839047,0.01133388,88231.0,88220.0,0.32268614]
[1766295839528,0.01133401,88230.0,88220.0,0.32268614]
[1766295839849,0.01133388,88231.0,88220.0,0.32268614]
[1766295841932,0.01133375,88232.0,88220.0,0.32268614]
[1766295842437,0.00568,88231.0,88220.0,0.32268614]
[1766295842582,0.01701388,88231.0,88220.0,0.32268614]
[1766295843316,0.01701388,88231.0,88220.0,0.33970002]
[1766295844094,0.01133401,88230.0,88220.0,0.33970002]
[1766295844430,0.00568,88231.0,88220.0,0.33970002]
[1766295845109,0.01701388,88231.0,88220.0,0.33970002]
[1766295847641,0.00568,88231.0,88220.0,0.33970002]
[1766295849156,0.00568,88231.0,88220.0,0.32268614]
[1766295849354,0.12323,88229.0,88220.0,0.00568]
[1766295849564,0.17461,88229.0,88220.0,0.32268614]
[1766295849813,0.17461,88229.0,88220.0,0.00568]
[1766295850020,0.17461,88228.0,88220.0,0.00568]
[1766295850422,0.18594427,88228.0,88220.0,0.00568]
[1766295850620,0.05138,88228.0,88220.0,0.00568]
[1766295853319,0.050831,88228.0,88220.0,0.00568]
[1766295853627,0.01701388,88231.0,88220.0,0.00568]
[1766295853910,0.00568,88231.0,88220.0,0.00568]
[1766295854111,0.00568,88231.0,88221.0,0.24093]
[1766295855508,0.00513,88231.0,88220.0,0.00568]
[1766295855914,0.00513,88231.0,88221.0,0.24093]
[1766295856153,0.00513,88231.0,88220.0,0.00568]
[1766295856329,0.00513,88231.0,88221.0,0.24093]
[1766295868167,0.01646388,88231.0,88221.0,0.12384]
[1766295869359,0.00513,88231.0,88221.0,0.12384]
[1766295871151,0.01646388,88231.0,88221.0,0.12384]
[1766295871356,0.00513,88231.0,88221.0,0.12384]
[1766295873337,0.01646388,88231.0,88221.0,0.12384]
[1766295873550,0.00513,88231.0,88221.0,0.12384]
[1766295882420,0.00513,88231.0,88221.0,0.24224]
[1766295883830,0.00513,88231.0,88220.0,0.00568]
[1766295884034,0.00513,88231.0,88221.0,0.23503]
[1766295891114,0.00513,88231.0,88221.0,0.24636516]
[1766295892120,0.00513,88231.0,88222.0,0.01133504]
[1766295892326,0.00513,88231.0,88221.0,0.24636516]
[1766295892765,0.00513,88231.0,88222.0,0.01133504]
[1766295893489,0.00513,88231.0,88222.0,0.24636504]
[1766295893644,0.00513,88231.0,88222.0,0.23503]
[1766295893853,0.00513,88231.0,88222.0,0.24636504]
[1766295897951,0.00513,88231.0,88222.0,0.23503]
[1766295898155,0.00513,88231.0,88222.0,0.24636504]
[1766295900574,0.00513,88231.0,88223.0,0.01133491]
[1766295901936,0.05083,88230.0,88220.0,0.00568]
[1766295902130,0.00055,88220.0,88216.0,0.00568]
[1766295902332,0.00055,88220.0,88212.0,0.00568]
[1766295902661,0.11626,88219.0,88212.0,0.00568]
[1766295902849,0.01677,88218.0,88208.0,0.00568]
[1766295902992,0.13303,88218.0,88208.0,0.00568]
[1766295903196,0.11626,88218.0,88208.0,0.00568]
[1766295903394,0.13303,88216.0,88208.0,0.00568]
[1766295904924,0.01677,88216.0,88208.0,0.00568]
[1766295905291,0.01677,88216.0,88209.0,0.01133671]
[1766295905493,0.00568,88217.0,88209.0,0.01133671]
[1766295905750,0.00568,88217.0,88210.0,0.01133658]
[1766295906389,0.00568,88217.0,88211.0,0.01133645]
[1766295907190,0.00568,88217.0,88212.0,0.01133632]
[1766295907392,0.00568,88217.0,88211.0,0.01133645]
[1766295907740,0.00568,88217.0,88210.0,0.01133658]
[1766295907993,0.00568,88217.0,88211.0,0.01133645]
[1766295908158,0.00568,88217.0,88210.0,0.01133658]
[1766295908596,0.00568,88217.0,88211.0,0.01133645]
[1766295908899,0.00568,88217.0,88210.0,0.01133658]
[1766295910533,0.00568,88217.0,88209.0,0.01133671]
[1766295910690,0.00558,88217.0,88212.0,0.11326]
[1766295910898,0.00568,88220.0,88214.0,0.23619]
[1766295911292,0.03406379,88219.0,88214.0,0.23619]
[1766295912516,0.03406379,88219.0,88214.0,0.12293]
[1766295912918,0.03406379,88219.0,88209.0,0.12459671]
[1766295913124,0.03406379,88219.0,88210.0,0.01133658]
[1766295913525,0.03406379,88219.0,88211.0,0.01133645]
[1766295915083,0.03406379,88219.0,88210.0,0.01133658]
[1766295915326,0.03406379,88219.0,88211.0,0.01133645]
[1766295915519,0.03406379,88219.0,88210.0,0.01133658]
[1766295915737,0.03406379,88219.0,88211.0,0.01133645]
[1766295916279,0.03406379,88219.0,88210.0,0.01133658]
[1766295916482,0.03406379,88219.0,88211.0,0.01133645]
[1766295916692,0.03406379,88219.0,88210.0,0.01133658]
[1766295916896,0.03406379,88219.0,88211.0,0.01133645]
[1766295917427,0.03406379,88219.0,88210.0,0.01133658]
[1766295917649,0.03406379,88219.0,88211.0,0.01133645]
[1766295918310,0.03406379,88219.0,88212.0,0.23619]
[1766295922408,0.00568,88220.0,88212.0,0.23619]
[1766295922928,0.00568,88220.0,88212.0,0.235641]
[1766295933022,0.00568,88220.0,88212.0,0.12293]
[1766295936380,0.00568,88220.0,88212.0,0.13426632]
[1766295936788,0.00568,88220.0,88213.0,0.01133619]
[1766295937742,0.00568,88223.0,88220.0,0.000549]
[1766295937941,0.00568,88223.0,88220.0,0.11851]
[1766295937942,1.93e-06,88223.0,88220.0,0.11851]
[1766295938699,0.01133375,88232.0,88214.0,0.01133606]
[1766295938700,0.02841,88232.0,88221.0,0.11851]
[1766295938903,0.03406228,88231.0,88222.0,0.23969]
[1766295939471,0.00568,88231.0,88222.0,0.25102504]
[1766295939809,0.00568,88231.0,88222.0,0.23969]
[1766295940245,0.00568,88231.0,88223.0,0.01133491]
[1766295940417,0.00568,88231.0,88224.0,0.01133478]
[1766295941204,5.276e-05,88235.0,88224.0,0.01133478]
[1766295941407,0.00568,88231.0,88224.0,0.01133478]
[1766295942370,0.00568,88231.0,88225.0,0.01133465]
[1766295943067,0.00568,88231.0,88224.0,0.01133478]
[1766295943839,0.00568,88231.0,88223.0,0.13251491]
[1766295944460,0.00568,88231.0,88223.0,0.12118]
[1766295950108,0.00568,88231.0,88223.0,0.13251491]
[1766295950339,0.00568,88231.0,88223.0,0.12118]
[1766295953598,0.00568,88232.0,88223.0,0.13251491]
[1766295955390,0.00568,88232.0,88223.0,0.1891891]
[1766295956176,0.00568,88232.0,88225.0,0.01133465]
[1766295956556,0.00568,88232.0,88226.0,0.01133452]
[1766295957027,0.00568,88232.0,88225.0,0.01133465]
[1766295957316,0.00568,88232.0,88224.0,0.01133478]
[1766295958926,0.00568,88232.0,88223.0,0.13251491]
[1766295959593,0.00568,88232.0,88223.0,0.12118]
[1766295959759,0.00568,88232.0,88223.0,0.13251491]
[1766295960497,0.00568,88232.0,88223.0,0.12118]
[1766295965448,0.00568,88232.0,88224.0,0.01133478]
[1766295965812,0.00568,88232.0,88223.0,0.13251491]
[1766295966038,0.00568,88232.0,88223.0,0.12118]
[1766295967587,0.00568,88232.0,88223.0,0.13251491]
[1766295968145,0.00568,88232.0,88223.0,0.12118]
[1766295970027,0.00568,88232.0,88223.0,0.13251491]
[1766295970696,0.00568,88232.0,88224.0,0.01133478]
[1766295970847,0.00568,88232.0,88223.0,0.13251491]
[1766295971767,0.00568,88232.0,88224.0,0.01133478]
[1766295972706,0.00568,88232.0,88223.0,0.12118]
[1766295973246,0.00568,88232.0,88223.0,0.13251491]
[1766295973544,0.00568,88232.0,88224.0,0.01133478]
[1766295973774,0.00568,88232.0,88223.0,0.13251491]
[1766295973982,0.00568,88232.0,88224.0,0.01133478]
[1766295976291,0.00568,88232.0,88223.0,0.12118]
[1766295976693,0.00568,88232.0,88223.0,0.13251491]
[1766295978391,0.00568,88232.0,88224.0,0.01133478]
[1766295979871,0.00568,88232.0,88223.0,0.13251491]
[1766295980263,0.00568,88232.0,88224.0,0.01133478]
[1766295980665,0.00568,88232.0,88223.0,0.13251491]
[1766295980881,0.00568,88232.0,88224.0,0.01133478]
[1766295981200,0.00568,88232.0,88223.0,0.13251491]
[1766295982385,0.00568,88232.0,88223.0,0.12118]
[1766295982599,0.00568,88232.0,88223.0,0.13251491]
[1766295982749,0.00568,88232.0,88224.0,0.01133478]
[1766295982953,0.00568,88232.0,88223.0,0.13251491]
[1766295985027,0.00568,88232.0,88224.0,0.01133478]
[1766295986015,0.00568,88232.0,88223.0,0.13251491]
[1766295986418,0.00568,88232.0,88224.0,0.01133478]
[1766295987076,0.00568,88232.0,88223.0,0.13251491]
[1766295987269,0.00568,88232.0,88224.0,0.01133478]
[1766295988055,0.00568,88232.0,88223.0,0.13251491]
[1766295988806,0.00568,88232.0,88224.0,0.01133478]
[1766295989353,0.00568,88232.0,88223.0,0.13251491]
[1766295989564,0.00568,88232.0,88224.0,0.01133478]
[1766295992444,0.00568,88232.0,88225.0,0.01133465]
[1766295992642,0.00568,88232.0,88224.0,0.01133478]
[1766295993040,0.00568,88232.0,88225.0,0.01133465]
[1766295993436,0.00568,88232.0,88224.0,0.01133478]
[1766295994291,0.00568,88232.0,88222.0,0.11851]
[1766295995006,0.00568,88232.0,88222.0,0.12984504]
[1766295995243,0.00568,88232.0,88222.0,0.11851]
[1766295995446,0.00568,88232.0,88222.0,0.12984504]
[1766295996227,0.00568,88232.0,88222.0,0.25387504]
[1766295996430,0.00568,88232.0,88222.0,0.24254]
[1766295996643,0.00568,88232.0,88222.0,0.25387504]
[1766295997653,0.00568,88232.0,88223.0,0.01133491]
[1766296001309,0.00568,88232.0,88222.0,0.25387504]
[1766296001463,0.00568,88232.0,88222.0,0.24254]
[1766296013821,5.276e-05,88235.0,88225.0,0.08160721]
[1766296014026,0.04084407,88248.0,88232.0,0.000549]
[1766296014027,0.00568,88244.0,88232.0,0.000549]
[1766296014227,0.00568,88244.0,88234.0,0.01133349]
[1766296014445,0.00568,88244.0,88234.0,0.12476]
[1766296014616,0.00568,88244.0,88234.0,0.24623]
[1766296018440,0.00568,88244.0,88235.0,0.01133182]
[1766296022346,0.03414,88243.0,88235.0,0.01133182]
[1766296022515,0.1557,88243.0,88235.0,0.01133182]
[1766296022744,0.12156,88243.0,88235.0,0.01078182]
[1766296022955,0.03414,88242.0,88235.0,0.01078182]
[1766296024438,0.03092,88242.0,88235.0,0.01078182]
[1766296036190,0.030371,88242.0,88235.0,0.01078182]
[1766296036594,0.00568,88244.0,88235.0,0.01078182]
[1766296045537,0.00568,88244.0,88232.0,0.12084]
[1766296046134,0.00568,88244.0,88232.0,0.15489756]
[1766296054819,0.15964,88244.0,88232.0,0.15489756]
[1766296059201,0.15396,88241.0,88232.0,0.03405756]
[1766296059332,0.03037,88241.0,88232.0,0.03405756]
[1766296059712,0.03037,88241.0,88232.0,0.03387685]
[1766296065599,0.0417026,88241.0,88232.0,0.03332785]
[1766296065762,0.09836575,88241.0,88232.0,0.03174753]
[1766296065963,0.01133285,88239.0,88232.0,0.03174753]
[1766296066340,0.01133311,88237.0,88232.0,0.03174753]
[1766296066548,0.01133285,88239.0,88232.0,0.0263442]
[1766296066747,0.01133298,88238.0,88230.0,0.00568]
[1766296066950,0.01133285,88239.0,88231.0,0.03405756]
[1766296067176,0.01133298,88238.0,88231.0,0.03405756]
[1766296067395,0.01133285,88239.0,88231.0,0.03405756]
[1766296068334,0.01133272,88240.0,88231.0,0.03405756]
[1766296068527,0.01133285,88239.0,88231.0,0.03405756]
[1766296068829,0.01133247,88242.0,88231.0,0.27940756]
[1766296069397,0.01133234,88243.0,88231.0,0.27940756]
[1766296069627,0.01133247,88242.0,88231.0,0.27940756]
[1766296070390,0.06799484,88242.0,88231.0,0.27940756]
[1766296070665,0.01133272,88240.0,88231.0,0.27940756]
[1766296070875,0.0113326,88241.0,88231.0,0.27940756]
[1766296071485,0.01133272,88240.0,88231.0,0.27940756]
[1766296072366,0.0113326,88241.0,88231.0,0.27940756]
[1766296072530,0.01133272,88240.0,88231.0,0.27940756]
[1766296072927,0.0113326,88241.0,88231.0,0.27940756]
[1766296073506,0.01133349,88234.0,88222.0,0.16283473]
[1766296073710,0.31696499,88241.0,88218.0,0.00568]
[1766296073711,0.01133465,88225.0,88218.0,0.00568]
[1766296073912,0.01078578,88224.0,88218.0,0.03974046]
[1766296074090,0.12359,88225.0,88218.0,4.6e-07]
[1766296074233,0.12359,88224.0,88213.0,0.00568]
[1766296074431,0.01133491,88223.0,88213.0,0.00568]
[1766296074644,0.12359,88224.0,88213.0,0.00568]
[1766296075689,0.13492478,88224.0,88213.0,0.00568]
[1766296076516,0.12359,88222.0,88213.0,0.00568]
[1766296076736,0.13492516,88221.0,88213.0,0.00568]
[1766296076976,0.01133529,88220.0,88213.0,0.00568]
[1766296077173,0.13492516,88221.0,88213.0,0.00568]
[1766296077683,0.12359,88221.0,88213.0,0.00568]
[1766296079890,0.12359,88220.0,88210.0,0.31696499]
[1766296080776,0.13492529,88220.0,88210.0,0.31696499]
[1766296080959,0.12359,88220.0,88210.0,0.31696499]
[1766296086497,0.12359,88220.0,88210.0,0.31712988]
[1766296089011,0.12359,88220.0,88209.0,0.00568]
[1766296089215,0.01133619,88213.0,88210.0,0.31712988]
[1766296089446,0.000549,88210.0,88207.0,0.00024208]
[1766296089643,0.01133632,88212.0,88207.0,0.00024208]
[1766296089864,0.12910606,88214.0,88207.0,0.00024208]
[1766296090436,0.01133606,88214.0,88207.0,0.00024208]
[1766296090919,0.01133619,88213.0,88207.0,0.00024208]
[1766296091338,0.01133606,88214.0,88207.0,0.00024208]
[1766296091549,0.01133594,88215.0,88207.0,0.00024208]
[1766296092349,0.01133606,88214.0,88207.0,0.00024208]
[1766296092579,0.01133594,88215.0,88207.0,0.00024208]
[1766296093709,0.01133594,88215.0,88207.0,0.00034956]
[1766296094210,0.07369545,88216.0,88207.0,0.00034956]
[1766296094423,0.01133594,88215.0,88207.0,0.00034956]
[1766296095386,0.01133619,88213.0,88207.0,5.6e-07]
[1766296095602,0.01133594,88215.0,88207.0,5.6e-07]
[1766296096012,0.01133606,88214.0,88207.0,5.6e-07]
[1766296096889,0.01133594,88215.0,88207.0,5.6e-07]
[1766296099416,0.01133606,88214.0,88207.0,5.6e-07]
[1766296099918,0.01133594,88215.0,88207.0,5.6e-07]
[1766296100093,0.01133606,88214.0,88207.0,5.6e-07]
[1766296104273,0.01133606,88214.0,88202.0,0.24128056]
[1766296104480,0.01133606,88214.0,88202.0,0.24133332]
[1766296105857,0.00568,88216.0,88202.0,0.24133332]
[1766296106057,0.00568,88216.0,88214.0,0.000349]
[1766296106456,0.00568,88216.0,88203.0,0.23881]
[1766296106618,0.00568,88216.0,88204.0,0.12281]
[1766296111490,0.01701581,88216.0,88204.0,0.12281]
[1766296112093,0.01133594,88215.0,88204.0,0.12281]
[1766296112285,0.01701581,88216.0,88204.0,0.12281]
[1766296112520,0.00568,88216.0,88204.0,0.12281]
[1766296115096,0.00568,88216.0,88204.0,0.24307]
[1766296122112,0.01701581,88216.0,88204.0,0.24307]
[1766296122702,0.00568,88216.0,88204.0,0.24307]
[1766296123098,0.01701581,88216.0,88204.0,0.24307]
[1766296123291,0.00568,88216.0,88204.0,0.24307]
[1766296124693,0.01701581,88216.0,88204.0,0.24307]
[1766296130953,0.01133594,88215.0,88204.0,0.24307]
[1766296133247,0.01701581,88216.0,88204.0,0.24307]
[1766296133887,0.01133594,88215.0,88204.0,0.24307]
[1766296134471,0.01701581,88216.0,88204.0,0.24307]
[1766296135165,0.01133594,88215.0,88204.0,0.24307]
[1766296135528,0.00568,88216.0,88204.0,0.24307]
[1766296137014,0.00568,88216.0,88203.0,0.01133748]
[1766296137188,0.00568,88216.0,88204.0,0.23683]
[1766296140640,0.00568,88216.0,88202.0,0.00252332]
[1766296141070,0.00568,88216.0,88203.0,0.23683]
[1766296141266,0.01701581,88216.0,88202.0,0.00252332]
[1766296141472,0.00568,88216.0,88202.0,0.00252332]
[1766296141814,0.01701581,88216.0,88202.0,0.00252332]
[1766296141996,0.00568,88216.0,88203.0,0.23683]
[1766296142530,0.00568,88216.0,88202.0,0.00252332]
[1766296142736,0.00568,88216.0,88203.0,0.23683]
[1766296144012,0.00568,88216.0,88202.0,0.00252332]
[1766296144368,0.00568,88216.0,88203.0,0.23683]
[1766296144766,0.00568,88216.0,88203.0,0.23895]
[1766296144985,0.00568,88216.0,88203.0,0.01133748]
[1766296145177,0.00568,88216.0,88204.0,0.23895]
[1766296145397,0.00568,88216.0,88205.0,0.23895]
[1766296145581,0.00568,88216.0,88204.0,0.01133735]
[1766296145781,0.00568,88216.0,88205.0,0.23895]
[1766296147134,0.00568,88216.0,88204.0,0.01133735]
[1766296147342,0.00568,88216.0,88206.0,0.12478]
[1766296147509,0.00568,88216.0,88208.0,0.12478]
[1766296147724,0.00568,88216.0,88204.0,0.01133735]
[1766296147960,0.005331,88216.0,88203.0,0.01133748]
[1766296148208,0.005331,88216.0,88204.0,0.23895]
[1766296148984,0.005331,88216.0,88203.0,0.01133748]
[1766296149417,0.005331,88216.0,88204.0,0.23895]
[1766296150028,0.005331,88216.0,88204.0,0.12478]
[1766296150237,0.005331,88216.0,88205.0,0.11417]
[1766296150390,0.12168,88215.0,88202.0,0.00252332]
[1766296151446,0.12168,88215.0,88202.0,0.24147332]
[1766296151662,0.13301594,88215.0,88202.0,0.24147332]
[1766296152165,0.12168,88215.0,88202.0,0.24147332]
[1766296153295,0.01133606,88214.0,88202.0,0.24147332]
[1766296153497,0.12168,88215.0,88202.0,0.24147332]
[1766296155605,0.13301594,88215.0,88202.0,0.24147332]
[1766296156125,0.12168,88215.0,88202.0,0.24147332]
[1766296157812,0.13301594,88215.0,88202.0,0.24147332]
[1766296158025,0.13301606,88214.0,88202.0,0.11669332]
[1766296158240,0.01133619,88213.0,88202.0,0.11669332]
[1766296158653,0.13301606,88214.0,88202.0,0.11669332]
[1766296158940,0.01133619,88213.0,88202.0,0.11669332]
[1766296159838,0.13301606,88214.0,88202.0,0.11669332]
[1766296161449,0.12168,88214.0,88202.0,0.11669332]
[1766296161820,0.12168,88214.0,88202.0,0.00252332]
[1766296162024,0.13301606,88214.0,88202.0,0.00252332]
[1766296162931,0.12168,88214.0,88202.0,0.00252332]
[1766296169001,0.12168,88214.0,88202.0,0.01386093]
[1766296169426,0.005331,88216.0,88202.0,0.01386093]
[1766296169605,0.005331,88216.0,88203.0,0.23564]
[1766296172679,0.1192,88215.0,88203.0,0.12165]
[1766296173146,0.13053594,88215.0,88203.0,0.12165]
[1766296174904,0.1192,88215.0,88203.0,0.24241]
[1766296177626,0.13053594,88215.0,88203.0,0.24241]
[1766296177885,0.01133594,88215.0,88203.0,0.24241]
[1766296178050,0.01666681,88216.0,88202.0,0.00252332]
[1766296178241,0.01666681,88216.0,88203.0,0.23403]
[1766296180524,0.005331,88216.0,88202.0,0.00252332]
[1766296181701,0.005331,88216.0,88203.0,0.23403]
[1766296182320,0.005331,88216.0,88202.0,0.00252332]
[1766296182811,0.01666681,88216.0,88203.0,0.23403]
[1766296183421,0.01666681,88216.0,88202.0,0.00252332]
[1766296183632,0.01666681,88216.0,88203.0,0.23403]
[1766296183834,0.01666681,88216.0,88202.0,0.00252332]
[1766296184029,0.01666681,88216.0,88203.0,0.23403]
[1766296184167,0.01666681,88216.0,88202.0,0.00252332]
[1766296185004,0.01666681,88216.0,88203.0,0.23403]
[1766296185420,0.01666681,88216.0,88202.0,0.00252332]
[1766296186301,0.01666681,88216.0,88203.0,0.23403]
[1766296186500,0.01666681,88216.0,88202.0,0.00252332]
[1766296186689,0.005331,88216.0,88202.0,0.00252332]
[1766296186853,0.01666681,88216.0,88202.0,0.00252332]
[1766296187193,0.01666681,88216.0,88203.0,0.23403]
[1766296188131,0.01666681,88216.0,88202.0,0.00252332]
[1766296188341,0.13347681,88216.0,88202.0,5.276e-05]
[1766296188503,0.13347681,88216.0,88202.0,0.11332276]
[1766296188711,0.13347681,88216.0,88202.0,0.23408276]
[1766296189798,0.01133594,88215.0,88202.0,0.23408276]
[1766296190273,0.13347681,88216.0,88202.0,0.23408276]
[1766296190482,0.01133594,88215.0,88202.0,0.23408276]
[1766296190691,0.01133594,88215.0,88203.0,0.00568]
[1766296190885,0.122141,88216.0,88204.0,0.23403]
[1766296191093,0.01133594,88215.0,88204.0,0.23403]
[1766296191318,0.13347681,88216.0,88204.0,0.23403]
[1766296193294,0.01133594,88215.0,88204.0,0.23403]
[1766296195005,0.01133594,88215.0,88204.0,0.11327]
[1766296197931,0.13347681,88216.0,88204.0,0.11327]
[1766296198137,0.01133594,88215.0,88204.0,0.11327]
[1766296198738,0.13347681,88216.0,88204.0,0.11327]
[1766296200328,0.01133594,88215.0,88204.0,0.11327]
[1766296200596,0.13347681,88216.0,88204.0,0.11327]
[1766296200767,0.13347681,88216.0,88204.0,0.23403]
[1766296201912,0.122141,88216.0,88204.0,0.23403]
[1766296202130,0.122141,88216.0,88203.0,0.00568]
[1766296202131,0.12814401,88230.0,88216.0,0.00055]
[1766296202343,0.01133324,88236.0,88219.0,0.31717676]
[1766296202555,0.00568,88236.0,88219.0,0.31717676]
[1766296202764,0.00568,88236.0,88219.0,0.32851218]
[1766296202765,0.01701324,88236.0,88219.0,0.32851218]
[1766296202965,0.00568,88236.0,88221.0,0.01133516]
[1766296203176,0.00568,88236.0,88222.0,0.00568]
[1766296203382,0.04535,88235.0,88222.0,0.00568]
[1766296203586,0.16216,88233.0,88222.0,0.00568]
[1766296204196,0.05668362,88233.0,88223.0,0.03406143]
[1766296204620,0.01133375,88232.0,88223.0,0.03406143]
[1766296205738,0.16082,88233.0,88223.0,0.03406143]
[1766296205885,0.17215362,88233.0,88223.0,0.03406143]
[1766296206084,0.16082,88233.0,88223.0,0.03406143]
[1766296206287,0.17215362,88233.0,88223.0,0.03406143]
[1766296206483,0.16082,88233.0,88223.0,0.03406143]
[1766296206890,0.04535,88233.0,88223.0,0.03406143]
[1766296208548,0.05668362,88233.0,88223.0,0.03406143]
[1766296209650,0.04535,88233.0,88223.0,0.03406143]
[1766296209906,0.11335194,88233.0,88223.0,0.03406143]
[1766296210162,0.04535,88233.0,88223.0,0.03406143]
[1766296212129,0.04535,88233.0,88223.0,0.15512143]
[1766296214944,0.01133337,88235.0,88223.0,0.15512143]
[1766296215213,0.00568,88236.0,88223.0,0.03406143]
[1766296215422,0.00568,88236.0,88224.0,0.2449]
[1766296215837,0.01133298,88238.0,88225.0,0.01360158]
[1766296216051,0.01701311,88237.0,88229.0,0.12384]
[1766296216403,0.01701311,88237.0,88229.0,0.12106]
[1766296216605,0.01701311,88237.0,88224.0,0.12384]
[1766296216829,0.01133324,88236.0,88226.0,0.01701311]
[1766296217211,0.01133337,88235.0,88226.0,0.01701311]
[1766296217432,0.01133324,88236.0,88226.0,0.01701311]
[1766296217795,0.01701311,88237.0,88226.0,0.01701311]
[1766296218944,0.01133324,88236.0,88226.0,0.01701311]
[1766296219220,0.01701311,88237.0,88226.0,0.01701311]
[1766296219361,0.01133324,88236.0,88226.0,0.01701311]
[1766296220371,0.01133337,88235.0,88226.0,0.01701311]
[1766296220576,0.01133324,88236.0,88226.0,0.01701311]
[1766296221394,0.01133337,88235.0,88226.0,0.01701311]
[1766296221926,0.01701311,88237.0,88226.0,0.01701311]
[1766296222145,0.01133324,88236.0,88226.0,0.01701311]
[1766296222788,0.01701311,88237.0,88226.0,0.01701311]
[1766296223148,0.01133324,88236.0,88226.0,0.01701311]
[1766296223363,0.00568,88237.0,88226.0,0.01701311]
[1766296224651,0.01133324,88236.0,88226.0,0.01701311]
[1766296226054,0.01701311,88237.0,88226.0,0.01701311]
[1766296226775,0.01133324,88236.0,88226.0,0.01701311]
[1766296227001,0.01701311,88237.0,88226.0,0.01701311]
[1766296228249,0.01133324,88236.0,88226.0,0.01701311]
[1766296228458,0.01701311,88237.0,88226.0,0.01701311]
[1766296229555,0.01133324,88236.0,88226.0,0.01701311]
[1766296230138,0.01701311,88237.0,88226.0,0.01701311]
[1766296230540,0.00568,88237.0,88226.0,0.01701311]
[1766296235178,0.00568,88237.0,88226.0,0.26541311]
[1766296235404,0.00568,88237.0,88227.0,0.2484]
[1766296235607,0.01701311,88237.0,88227.0,0.2484]
[1766296237014,0.01133311,88237.0,88226.0,0.01701311]
[1766296237275,0.00568,88236.0,88227.0,0.2484]
[1766296237682,0.00568,88236.0,88226.0,0.01706587]
[1766296237683,0.01133311,88237.0,88226.0,5.276e-05]
[1766296237862,0.00568,88235.0,88227.0,0.2484]
[1766296238103,0.00568,88235.0,88228.0,0.2484]
[1766296238669,0.01701337,88235.0,88228.0,0.2484]
[1766296238865,0.00568,88235.0,88228.0,0.2484]
[1766296239066,0.00568,88235.0,88228.0,0.1236]
[1766296239287,0.00568,88235.0,88229.0,0.2484]
[1766296254953,0.01701337,88235.0,88229.0,0.1248]
[1766296255678,0.00568,88235.0,88229.0,0.1248]
[1766296256229,0.01701337,88235.0,88229.0,0.124251]
[1766296256426,0.00568,88235.0,88229.0,0.124251]
[1766296258447,0.00247,88235.0,88229.0,0.124251]
[1766296259296,0.00247,88235.0,88226.0,5.276e-05]
[1766296263183,0.00247,88235.0,88226.0,0.12485276]
[1766296264794,0.00247,88235.0,88226.0,0.24845276]
[1766296265109,0.00247,88235.0,88227.0,0.24894]
[1766296265287,0.00247,88235.0,88226.0,5.276e-05]